{"text_format":"1","workbook":"xlsx","n_sheets":1,"sheets":["EXCEL.WEBKYNANG.VN"],"not_rendered":{"charts":0,"images":0,"macros":1,"external_links":0,"defined_names":138,"comments":0,"pivot_tables":0},"unopened":[],"bounds":{"document_bytes":16777216,"sheet_cells":100000,"rows_first":2000,"rows_last":500,"rows_between":2000,"halvings":0,"cell_chars":16384,"cell_head_chars":4096},"cells_cut":0,"cells_raw":0,"read":"whole","date_system":"1900"}

{"sheet":"EXCEL.WEBKYNANG.VN","index":0,"n_rows":51,"n_cols":10,"rows_kept":51,"cut":false,"hidden":false,"merged":[[50,1,51,9],[0,1,0,9],[0,10,0,11],[8,1,8,2],[10,1,10,2],[13,1,13,2]]}
[null,"BẢNG KÊ CHI TIẾT CHI PHÍ DỰ KIẾN - MỞ QUÁN CAFÉ"]
[]
[null,"ĐỊNH PHÍ (F)",null,{"$f":"ROUND((D5+D8+D13+D28+D32+D34+D36),-1)","v":298597920},null,"BIẾN PHÍ ĐƠN VỊ (V)",{"$f":"G5+G8","v":15750},null,"CHI PHÍ XÂY DỰNG",{"$f":"J5+J17+J31+J39","v":1257400000}]
[]
[null,"1./ MẶT BẰNG",null,{"$f":"D6","v":70000000},null,"1./ NGUYÊN VẬT LIỆU",{"$f":"(G6*$G$11)/100","v":15750},null,"XÂY DỰNG",{"$f":"SUM(J6:J16)","v":520000000}]
[null,"Thuê theo tháng",null,70000000,null,"Định mức trên giá bán (%)",35,null,"Công xây dựng",120000000]
[null,null,null,null,null,null,null,null,"Kính",20000000]
[null,"2./ XÂY DỰNG",null,{"$f":"D11","v":13097920},null,"2./ ĐỊNH MỨC KHÁC",{"$f":"(G11*G9)/100","v":0},null,"Bàn ghế",240000000]
[null,"Tổng chi phí xây dựng",null,{"$f":"J3","v":1257400000},null,"Định mức trên giá bán (%)",0,null,"Ốp alu",70000000]
[null,"Phân bổ trong (Năm)",{"$f":"D10*12","v":96},8,null,null,null,null,null,0]
[null,"Phân cho từng tháng",null,{"$f":"ROUND(D9/C10,-1)","v":13097920},null,"3./ GIÁ BÁN",45000,null,"Thạch cao",20000000]
[null,null,null,null,null,null,null,null,"Sơn nước",10000000]
[null,"3./ CHI PHÍ NHÂN VIÊN",null,{"$f":"SUM(D22:D26)","v":176000000},null,null,null,null,"Toilet",30000000]
[null,"* Số lượng nhân viên",null,"Bảng lương",null,"ĐƠN VỊ TÍNH","VND",null,"Cửa cuốn",10000000]
[null,"Quản lý",2,16000000,null,null,null,null,"Phun sương",0]
[null,"Pha chế",4,6400000]
[null,"Phục vụ",12,5400000,null,null,null,null,"TRANG TRÍ",{"$f":"SUM(J18:J30)","v":270400000}]
[null,"Thu ngân",4,5400000,null,null,null,null,"Tranh dán tường",4000000]
[null,"Bảo vệ",4,8000000,null,null,null,null,"Bể cá",12000000]
[null,"Tổng số nhân viên",{"$f":"SUM(C15:C19)","v":26},null,null,null,null,null,"Cây trồng",8000000]
[null,"* Tổng Lương",null,null,null,null,null,null,"Kệ để cà phê",4000000]
[null,"Quản lý",null,{"$f":"D15*C15","v":32000000},null,null,null,null,"Tủ treo tường",12000000]
[null,"Pha chế",null,{"$f":"D16*C16","v":25600000},null,null,null,null,"Máy lạnh",70000000]
[null,"Phục vụ",null,{"$f":"D17*C17","v":64800000},null,null,null,null,"Tivi",60000000]
[null,"Thu ngân",null,{"$f":"D18*C18","v":21600000},null,null,null,null,"Bảng hiệu, hộp đèn",54000000]
[null,"Bảo vệ",null,{"$f":"D19*C19","v":32000000},null,null,null,null,"Mặt đá quầy bar",20000000]
[null,null,null,null,null,null,null,null,"Vẽ tranh tường",8000000]
[null,"4./ PHÍ NHƯỢNG QUYỀN",null,{"$f":"D30","v":4000000},null,null,null,null,"Quạt hút",2400000]
[null,"Trong 5 năm",null,240000000,null,null,null,null,"Đèn trang trí",16000000]
[null,"Phân bổ theo tháng",null,{"$f":"$D$29/(5*12)","v":4000000}]
[null,null,null,null,null,null,null,null,"QUẦY BAR",{"$f":"SUM(J32:J38)","v":419000000}]
[null,"5./ INTERNET",null,1500000,null,null,null,null,"Máy pha cà phê",240000000]
[null,null,null,null,null,null,null,null,"Máy xay cà phê",40000000]
[null,"6./ ĐIỆN + NƯỚC",null,10000000,null,null,null,null,"Máy xay sinh tố 2 cối",48000000]
[null,null,null,null,null,null,null,null,"Thùng đá",11000000]
[null,"7./ KHÁC",null,{"$f":"SUM(D37:D52)","v":24000000},null,null,null,null,"Dụng cụ + Nguyên vật liệu",60000000]
[null,"Công an",null,2000000,null,null,null,null,"Bồn rửa ly + Kệ ly + …",20000000]
[null,"Thuế khoán",null,2000000]
[null,"Chi phí vận hành chung",null,20000000,null,null,null,null,"KHÁC",{"$f":"SUM(J40:J52)","v":48000000}]
[null,null,null,null,null,null,null,null,"Internet + K+",6000000]
[null,null,null,null,null,null,null,null,"Camera",20000000]
[null,null,null,null,null,null,null,null,"Đồng phục",8000000]
[null,null,null,null,null,null,null,null,"Phần mềm tính tiền",5000000]
[null,null,null,null,null,null,null,null,"Máy in bill",3000000]
[null,null,null,null,null,null,null,null,"Két tiền",2000000]
[null,null,null,null,null,null,null,null,"Loa + Amply",4000000]
[null,null,null,null,null,null,null,null,"Máy chiếu",0]
[]
[]
[]
[null,"DOWNLOAD NHIỀU MẪU FILE EXCEL HAY KHÁC TẠI EXCEL.WEBKYNANG.VN -> CLICK HERE"]